Workbook

Sheet Лист
E1: СОСНА
A2: М3 | E2: Наименование | F2: Приход М3 | G2: шт | H2: РАСХОД | I2: ИТОГ | O2: Купить | P2: Корзина | U2: И.П Дугинов
A3: =B3*C3*D3/1000000000 -> 0.01 | B3: 25 | C3: 100 | D3: 4000 | E3: 25*100*4000 | F3: 4.35 | G3: =F3/A3 -> 435 | H3: =A3*VLOOKUP(P3,$V$7:$AB$18,7,0) -> 0.1 | I3: =F3-H3 -> 4.25 | O3: 1 | P3: =IF(O3=1,"Сосна "&""&E3,"") -> Сосна 25*100*4000 | U3: (наименование организации, ИНН) | AL3: =IF(EXACT(P3,$V$7:$V$17)*1,0) -> 
A4: 0.0125 | B4: 25 | C4: 100 | D4: 5000 | E4: 25*100*5000 | F4: 0 | G4: =F4/A4 -> 0 | H4: =A4*VLOOKUP(P4,$V$7:$AB$18,7,0) -> 0 | I4: =F4-H4 -> 0 | P4: =IF(O4=1,"Сосна "&""&E4,"") ->  | AL4: =IF(EXACT(P4,$V$6:$V$17),1,0) -> 
A5: 0.015 | B5: 25 | C5: 100 | D5: 6000 | E5: 25*100*6000 | F5: 2.4 | G5: 160 | H5: 0.195 | I5: 2.205 | O5: 1 | P5: Сосна 25*100*6000 | U5: Товарный чек № ________ от ________________ г.
A6: 0.012 | B6: 25 | C6: 120 | D6: 4000 | E6: 25*120*4000 | F6: 2.67 | G6: 222.5 | H6: 0.24 | I6: 2.43 | O6: 1 | P6: Сосна 25*120*4000 | U6: № п/п | V6: Наименование, характеристика товара | AB6: Кол-во | AC6: Цена | AF6: Сумма | AJ6: Проданно | AK6: Позиция | AL6: 0
A7: 0.015 | B7: 25 | C7: 120 | D7: 5000 | E7: 25*120*5000 | F7: 0 | G7: 0 | H7: 0 | I7: 0 | Q7: Листв-ца | U7: =IF(V7<>"",MAX($U$6:U6)+1,"") -> 1 | V7: =IFERROR(INDEX($P$3:$P$1000,_xlfn.AGGREGATE(15,6,(ROW($P$3:$P$1000)-2)/($P$3:$P$1000<>""),ROW(A1))),"") -> Сосна 25*100*4000 | AB7: 10 | AC7: 9500 | AF7: =IF(V7="","",AC7*AB7*INDEX($A$3:$A$1000,MATCH(V7,$P$3:$P$1000,0))) -> 950 | AJ7: =IF(V7="","",AB7*INDEX($A$3:$A$1000,MATCH(V7,$P$3:$P$1000,0))) -> 0.1 | AK7: =IF(O3=1,"25*100*4000","") -> 25*100*4000 | AL7: 0
A8: 0.018 | B8: 25 | C8: 120 | D8: 6000 | E8: 25*120*6000 | F8: 5.05 | G8: 280.5555556 | H8: 0.9 | I8: 4.15 | O8: 1 | P8: Сосна 25*120*6000 | U8: =IF(V8<>"",MAX($U$6:U7)+1,"") -> 2 | V8: =IFERROR(INDEX($P$3:$P$1000,_xlfn.AGGREGATE(15,6,(ROW($P$3:$P$1000)-2)/($P$3:$P$1000<>""),ROW(A2))),"") -> Сосна 25*100*6000 | AB8: 13 | AC8: 9500 | AF8: =IF(V8="","",AC8*AB8*INDEX($A$3:$A$1000,MATCH(V8,$P$3:$P$1000,0))) -> 1852.5 | AJ8: =IF(V8="","",AB8*INDEX($A$3:$A$1000,MATCH(V8,$P$3:$P$1000,0))) -> 0.195 | AK8: =IF(O4=1,"25*100*4000","") ->  | AL8: 0
A9: 0.015 | B9: 25 | C9: 150 | D9: 4000 | E9: 25*150*4000 | F9: 2.025 | G9: 135 | H9: 0 | I9: 2.025 | Q9: Пихта | U9: =IF(V9<>"",MAX($U$6:U8)+1,"") -> 3 | V9: Сосна 25*120*4000 | AB9: 20 | AC9: 9500 | AF9: =IF(V9="","",AC9*AB9*INDEX($A$3:$A$1000,MATCH(V9,$P$3:$P$1000,0))) -> 2280 | AJ9: =IF(V9="","",AB9*INDEX($A$3:$A$1000,MATCH(V9,$P$3:$P$1000,0))) -> 0.24 | AK9: 25*100*4000 | AL9: 0
A10: 0.01875 | B10: 25 | C10: 150 | D10: 5000 | E10: 25*150*5000 | F10: 0 | G10: 0 | H10: 0 | I10: 0 | U10: =IF(V10<>"",MAX($U$6:U9)+1,"") -> 4 | V10: Сосна 25*120*6000 | AB10: 50 | AC10: 9500 | AF10: 8550 | AJ10: =IF(V10="","",AB10*INDEX($A$3:$A$1000,MATCH(V10,$P$3:$P$1000,0))) -> 0.9 | AK10: 25*100*4000 | AL10: 0
A11: 0.0225 | B11: 25 | C11: 150 | D11: 6000 | E11: 25*150*6000 | F11: 0 | G11: 0 | H11: 0 | I11: 0 | Q11: Кедр | U11: =IF(V11<>"",MAX($U$6:U10)+1,"") -> 5 | V11: Лиственица 40*100*4000 | AB11: 44 | AC11: 13800 | AF11: 9715.2 | AJ11: 0.704 | AL11: 0
A12: 0.018 | B12: 25 | C12: 180 | D12: 4000 | E12: 25*180*4000 | F12: 2.84 | G12: 157.7777778 | H12: 0 | I12: 2.84 | U12: =IF(V12<>"",MAX($U$6:U11)+1,"") -> 6 | V12: Пихта 30*120*4000 | AB12: 33 | AC12: 8500 | AF12: 4039.2 | AJ12: 0.4752 | AK12: 25*100*4000 | AL12: 0
A13: 0.0225 | B13: 25 | C13: 180 | D13: 5000 | E13: 25*180*5000 | F13: 0 | G13: 0 | H13: 0 | I13: 0 | U13: =IF(V13<>"",MAX($U$6:U12)+1,"") -> 7 | V13: Кедр 25*150*4000 | AB13: 96 | AC13: 11500 | AF13: 16560 | AJ13: 1.44 | AL13: 0
A14: 0.027 | B14: 25 | C14: 180 | D14: 6000 | E14: 25*180*6000 | F14: 0.45 | G14: 16.66666667 | H14: 0 | I14: 0.45 | U14: =IF(V14<>"",MAX($U$6:U13)+1,"") ->  | AL14: 1
A15: 0.02 | B15: 25 | C15: 200 | D15: 4000 | E15: 25*200*4000 | F15: 1.14 | G15: 57 | H15: 0 | I15: 1.14 | U15: =IF(V15<>"",MAX($U$6:U14)+1,"") ->  | AF15: =IF(V15="","",AC15*AB15*INDEX($A$3:$A$1000,MATCH(V15,$P$3:$P$1000,0))) ->  | AL15: 1
A16: 0.025 | B16: 25 | C16: 200 | D16: 5000 | E16: 25*200*5000 | F16: 0 | G16: 0 | H16: 0 | I16: 0 | U16: =IF(V16<>"",MAX($U$6:U15)+1,"") ->  | AL16: 1
A17: 0.03 | B17: 25 | C17: 200 | D17: 6000 | E17: 25*200*6000 | F17: 0 | G17: 0 | H17: 0 | I17: 0 | U17: =IF(V17<>"",MAX($U$6:U16)+1,"") ->  | V17: =IFERROR(INDEX($P$3:$P$1000,_xlfn.AGGREGATE(15,6,(ROW($P$3:$P$1000)-2)/($P$3:$P$1000<>""),ROW(A11))),"") ->  | AF17: =IF(V17="","",AC17*AB17*INDEX($A$3:$A$1000,MATCH(V17,$P$3:$P$1000,0))) ->  | AL17: 1
A18: 0.012 | B18: 30 | C18: 100 | D18: 4000 | E18: 30*100*4000 | F18: 0 | G18: 0 | H18: 0 | I18: 0 | U18: =IF(V18<>"",MAX($U$6:U17)+1,"") -> 
A19: 0.015 | B19: 30 | C19: 100 | D19: 5000 | E19: 30*100*5000 | F19: 0 | G19: 0 | H19: 0 | I19: 0 | U19: Всего | AF19: =SUM(AF7:AG15) -> 43946.9
A20: 0.018 | B20: 30 | C20: 100 | D20: 6000 | E20: 30*100*6000 | F20: 0 | G20: 0 | H20: 0 | I20: 0
A21: 0.0144 | B21: 30 | C21: 120 | D21: 4000 | E21: 30*120*4000 | F21: 6 | G21: 416.6666667 | H21: 0 | I21: 6
A22: 0.018 | B22: 30 | C22: 120 | D22: 5000 | E22: 30*120*5000 | F22: 4.1 | G22: 227.7777778 | H22: 0 | I22: 4.1 | U22: Продавец
A23: 0.0216 | B23: 30 | C23: 120 | D23: 6000 | E23: 30*120*6000 | F23: 0 | G23: 0 | H23: 0 | I23: 0 | W23: подпись | AB23: ф.и.о.
A24: 0.018 | B24: 30 | C24: 150 | D24: 4000 | E24: 30*150*4000 | F24: 10.54 | G24: 585.5555556 | H24: 0 | I24: 10.54 | V24: =IFERROR(INDEX($P$3:$P$1000,_xlfn.AGGREGATE(15,6,(ROW($P$3:$P$1000)-2)/($P$3:$P$1000<>""),ROW(A27))),"") -> 
A25: 0.0225 | B25: 30 | C25: 150 | D25: 5000 | E25: 30*150*5000 | F25: 0.94 | G25: 41.77777778 | H25: 0 | I25: 0.94
A26: 0.027 | B26: 30 | C26: 150 | D26: 6000 | E26: 30*150*6000 | F26: 1.28 | G26: 47.40740741 | H26: 0 | I26: 1.28
A27: 0.0216 | B27: 30 | C27: 180 | D27: 4000 | E27: 30*180*4000 | F27: 0 | G27: 0 | H27: 0 | I27: 0
A28: 0.027 | B28: 30 | C28: 180 | D28: 5000 | E28: 30*180*5000 | F28: 0 | G28: 0 | H28: 0 | I28: 0
A29: 0.0324 | B29: 30 | C29: 180 | D29: 6000 | E29: 30*180*6000 | F29: 0 | G29: 0 | H29: 0 | I29: 0 | P29: =IF(O29=1,"Сосна "&""&E29,"") -> 
A30: 0.024 | B30: 30 | C30: 200 | D30: 4000 | E30: 30*200*4000 | F30: 0 | G30: 0 | H30: 0 | I30: 0
A31: 0.03 | B31: 30 | C31: 200 | D31: 5000 | E31: 30*200*5000 | F31: 0 | G31: 0 | H31: 0 | I31: 0
A32: 0.036 | B32: 30 | C32: 200 | D32: 6000 | E32: 30*200*6000 | F32: 1.44 | G32: 40 | H32: 0 | I32: 1.44
A33: 0.016 | B33: 40 | C33: 100 | D33: 4000 | E33: 40*100*4000 | F33: 0 | G33: 0 | H33: 0 | I33: 0
A34: 0.02 | B34: 40 | C34: 100 | D34: 5000 | E34: 40*100*5000 | F34: 0 | G34: 0 | H34: 0 | I34: 0
A35: 0.024 | B35: 40 | C35: 100 | D35: 6000 | E35: 40*100*6000 | F35: 0 | G35: 0 | H35: 0 | I35: 0
A36: 0.0192 | B36: 40 | C36: 120 | D36: 4000 | E36: 40*120*4000 | F36: 0 | G36: 0 | H36: 0 | I36: 0
A37: 0.024 | B37: 40 | C37: 120 | D37: 5000 | E37: 40*120*5000 | F37: 0 | G37: 0 | H37: 0 | I37: 0
A38: 0.0288 | B38: 40 | C38: 120 | D38: 6000 | E38: 40*120*6000 | F38: 0 | G38: 0 | H38: 0 | I38: 0
A39: 0.024 | B39: 40 | C39: 150 | D39: 4000 | E39: 40*150*4000 | F39: 0 | G39: 0 | H39: 0 | I39: 0
A40: 0.03 | B40: 40 | C40: 150 | D40: 5000 | E40: 40*150*5000 | F40: 0 | G40: 0 | H40: 0 | I40: 0
A41: 0.036 | B41: 40 | C41: 150 | D41: 6000 | E41: 40*150*6000 | F41: 0 | G41: 0 | H41: 0 | I41: 0
A42: 0.0288 | B42: 40 | C42: 180 | D42: 4000 | E42: 40*180*4000 | F42: 0 | G42: 0 | H42: 0 | I42: 0
A43: 0.036 | B43: 40 | C43: 180 | D43: 5000 | E43: 40*180*5000 | F43: 0 | G43: 0 | H43: 0 | I43: 0
A44: 0.0432 | B44: 40 | C44: 180 | D44: 6000 | E44: 40*180*6000 | F44: 0 | G44: 0 | H44: 0 | I44: 0
A45: 0.032 | B45: 40 | C45: 200 | D45: 4000 | E45: 40*200*4000 | F45: 0 | G45: 0 | H45: 0 | I45: 0
A46: 0.04 | B46: 40 | C46: 200 | D46: 5000 | E46: 40*200*5000 | F46: 0 | G46: 0 | H46: 0 | I46: 0
A47: 0.048 | B47: 40 | C47: 200 | D47: 6000 | E47: 40*200*6000 | F47: 0 | G47: 0 | H47: 0 | I47: 0
A48: 0.02 | B48: 50 | C48: 100 | D48: 4000 | E48: 50*100*4000 | F48: 0 | G48: 0 | H48: 0 | I48: 0
A49: 0.025 | B49: 50 | C49: 100 | D49: 5000 | E49: 50*100*5000 | F49: 0 | G49: 0 | H49: 0 | I49: 0
A50: 0.03 | B50: 50 | C50: 100 | D50: 6000 | E50: 50*100*6000 | F50: 0 | G50: 0 | H50: 0 | I50: 0
A51: 0.024 | B51: 50 | C51: 120 | D51: 4000 | E51: 50*120*4000 | F51: 0 | G51: 0 | H51: 0 | I51: 0
A52: 0.03 | B52: 50 | C52: 120 | D52: 5000 | E52: 50*120*5000 | F52: 0 | G52: 0 | H52: 0 | I52: 0
A53: 0.036 | B53: 50 | C53: 120 | D53: 6000 | E53: 50*120*6000 | F53: 0 | G53: 0 | H53: 0 | I53: 0
A54: 0.03 | B54: 50 | C54: 150 | D54: 4000 | E54: 50*150*4000 | F54: =1.6-0.12 -> 1.48 | G54: 49.33333333 | H54: 0 | I54: 1.48
A55: 0.0375 | B55: 50 | C55: 150 | D55: 5000 | E55: 50*150*5000 | F55: 0 | G55: 0 | H55: 0 | I55: 0
A56: 0.045 | B56: 50 | C56: 150 | D56: 6000 | E56: 50*150*6000 | F56: 0 | G56: 0 | H56: 0 | I56: 0
A57: 0.036 | B57: 50 | C57: 180 | D57: 4000 | E57: 50*180*4000 | F57: 0 | G57: 0 | H57: 0 | I57: 0
A58: 0.045 | B58: 50 | C58: 180 | D58: 5000 | E58: 50*180*5000 | F58: 0 | G58: 0 | H58: 0 | I58: 0
A59: 0.054 | B59: 50 | C59: 180 | D59: 6000 | E59: 50*180*6000 | F59: 2.49 | G59: 46.11111111 | H59: 0 | I59: 2.49
A60: 0.04 | B60: 50 | C60: 200 | D60: 4000 | E60: 50*200*4000 | F60: 0 | G60: 0 | H60: 0 | I60: 0
A61: 0.05 | B61: 50 | C61: 200 | D61: 5000 | E61: 50*200*5000 | F61: 0 | G61: 0 | H61: 0 | I61: 0
A62: 0.06 | B62: 50 | C62: 200 | D62: 6000 | E62: 50*200*6000 | F62: =0.72-0.18 -> 0.54 | G62: 9 | H62: 0 | I62: 0.54
A63: 0.04 | B63: 100 | C63: 100 | D63: 4000 | E63: 100*100*4000 | F63: 0.52 | G63: 13 | H63: 0 | I63: 0.52
A64: 0.05 | B64: 100 | C64: 100 | D64: 5000 | E64: 100*100*5000 | F64: 0 | G64: 0 | H64: 0 | I64: 0
A65: 0.06 | B65: 100 | C65: 100 | D65: 6000 | E65: 100*100*6000 | F65: 4.5 | G65: 75 | H65: 0 | I65: 4.5
A66: 0.048 | B66: 100 | C66: 120 | D66: 4000 | E66: 100*120*4000 | F66: 0 | G66: 0 | H66: 0 | I66: 0
A67: =B67*C67*D67/1000000000 -> 0.06 | B67: 100 | C67: 120 | D67: 5000 | E67: 100*120*5000 | F67: 0 | G67: 0 | H67: 0 | I67: 0
A68: 0.072 | B68: 100 | C68: 120 | D68: 6000 | E68: 100*120*6000 | F68: 0 | G68: =F68/A68 -> 0 | H68: =A68*VLOOKUP(P68,$V$7:$AB$18,7,0) -> 0 | I68: =F68-H68 -> 0 | P68: =IF(O68=1,"Сосна "&""&E68,"") -> 
A69: 0.06 | B69: 100 | C69: 150 | D69: 4000 | E69: 100*150*4000 | F69: 0 | G69: 0 | H69: 0 | I69: 0
A70: 0.075 | B70: 100 | C70: 150 | D70: 5000 | E70: 100*150*5000 | F70: 0 | G70: 0 | H70: 0 | I70: 0
A71: 0.09 | B71: 100 | C71: 150 | D71: 6000 | E71: 100*150*6000 | F71: 0 | G71: 0 | H71: 0 | I71: 0
A72: 0.072 | B72: 100 | C72: 180 | D72: 4000 | E72: 100*180*4000 | F72: 0 | G72: 0 | H72: 0 | I72: 0
A73: 0.09 | B73: 100 | C73: 180 | D73: 5000 | E73: 100*180*5000 | F73: 0 | G73: 0 | H73: 0 | I73: 0
A74: 0.108 | B74: 100 | C74: 180 | D74: 6000 | E74: 100*180*6000 | F74: 0 | G74: 0 | H74: 0 | I74: 0
A75: 0.08 | B75: 100 | C75: 200 | D75: 4000 | E75: 100*200*4000 | F75: 0 | G75: 0 | H75: 0 | I75: 0
A76: 0.1 | B76: 100 | C76: 200 | D76: 5000 | E76: 100*200*5000 | F76: 0 | G76: 0 | H76: 0 | I76: 0
A77: 0.12 | B77: 100 | C77: 200 | D77: 6000 | E77: 100*200*6000 | F77: 0 | G77: 0 | H77: 0 | I77: 0
A78: 0.072 | B78: 150 | C78: 120 | D78: 4000 | E78: 150*120*4000 | F78: 0 | G78: 0 | H78: 0 | I78: 0
A79: 0.09 | B79: 150 | C79: 120 | D79: 5000 | E79: 150*120*5000 | F79: 0 | G79: 0 | H79: 0 | I79: 0
A80: 0.108 | B80: 150 | C80: 120 | D80: 6000 | E80: 150*120*6000 | F80: 0 | G80: 0 | H80: 0 | I80: 0
A81: 0.09 | B81: 150 | C81: 150 | D81: 4000 | E81: 150*150*4000 | F81: 5.8 | G81: 64.44444444 | H81: 0 | I81: 5.8
A82: 0.1125 | B82: 150 | C82: 150 | D82: 5000 | E82: 150*150*5000 | F82: 0 | G82: 0 | H82: 0 | I82: 0
A83: 0.135 | B83: 150 | C83: 150 | D83: 6000 | E83: 150*150*6000 | F83: 1.89 | G83: 14 | H83: 0 | I83: 1.89
A84: 0.108 | B84: 150 | C84: 180 | D84: 4000 | E84: 150*180*4000 | F84: 0 | G84: 0 | H84: 0 | I84: 0
A85: 0.135 | B85: 150 | C85: 180 | D85: 5000 | E85: 150*180*5000 | F85: 0 | G85: 0 | H85: 0 | I85: 0
A86: 0.162 | B86: 150 | C86: 180 | D86: 6000 | E86: 150*180*6000 | F86: 0 | G86: 0 | H86: 0 | I86: 0
A87: 0.12 | B87: 150 | C87: 200 | D87: 4000 | E87: 150*200*4000 | F87: 0 | G87: 0 | H87: 0 | I87: 0
A88: 0.15 | B88: 150 | C88: 200 | D88: 5000 | E88: 150*200*5000 | F88: 0 | G88: 0 | H88: 0 | I88: 0
A89: 0.18 | B89: 150 | C89: 200 | D89: 6000 | E89: 150*200*6000 | F89: 0 | G89: 0 | H89: 0 | I89: 0
A90: 0.096 | B90: 200 | C90: 120 | D90: 4000 | E90: 200*120*4000 | F90: 0 | G90: 0 | H90: 0 | I90: 0
A91: 0.12 | B91: 200 | C91: 120 | D91: 5000 | E91: 200*120*5000 | F91: 0 | G91: 0 | H91: 0 | I91: 0
A92: 0.144 | B92: 200 | C92: 120 | D92: 6000 | E92: 200*120*6000 | F92: 0 | G92: 0 | H92: 0 | I92: 0
A93: 0.144 | B93: 200 | C93: 180 | D93: 4000 | E93: 200*180*4000 | F93: 0 | G93: 0 | H93: 0 | I93: 0
A94: 0.18 | B94: 200 | C94: 180 | D94: 5000 | E94: 200*180*5000 | F94: 0 | G94: 0 | H94: 0 | I94: 0
A95: 0.216 | B95: 200 | C95: 180 | D95: 6000 | E95: 200*180*6000 | F95: 0 | G95: 0 | H95: 0 | I95: 0
A96: 0.16 | B96: 200 | C96: 200 | D96: 4000 | E96: 200*200*4000 | F96: 0 | G96: 0 | H96: 0 | I96: 0
A97: 0.2 | B97: 200 | C97: 200 | D97: 5000 | E97: 200*200*5000 | F97: 0 | G97: 0 | H97: 0 | I97: 0
A98: 0.24 | B98: 200 | C98: 200 | D98: 6000 | E98: 200*200*6000 | F98: 0.72 | G98: 3 | H98: 0 | I98: 0.72
E99: Лиственица
A100: М3 | E100: Наименование | F100: Приход М3 | G100: шт | H100: РАСХОД | I100: ИТОГ
A101: =B101*C101*D101/1000000000 -> 0.01 | B101: 25 | C101: 100 | D101: 4000 | E101: 25*100*4000 | F101: 0 | G101: =F101/A101 -> 0 | H101: =A101*VLOOKUP(P101,$V$7:$AB$18,7,0) -> 0 | I101: =F101-H101 -> 0 | P101: =IF(O101=1,"Лиственица "&""&E101,"") -> 
A102: 0.0125 | B102: 25 | C102: 100 | D102: 5000 | E102: 25*100*5000 | F102: 0 | G102: =F102/A102 -> 0 | H102: 0 | I102: =F102-H102 -> 0 | P102: =IF(O102=1,"Лиственица "&""&E102,"") -> 
A103: 0.015 | B103: 25 | C103: 100 | D103: 6000 | E103: 25*100*6000 | F103: 0 | G103: 0 | H103: 0 | I103: 0
A104: 0.012 | B104: 25 | C104: 120 | D104: 4000 | E104: 25*120*4000 | F104: 0 | G104: 0 | H104: 0 | I104: 0
A105: 0.015 | B105: 25 | C105: 120 | D105: 5000 | E105: 25*120*5000 | F105: 0 | G105: 0 | H105: 0 | I105: 0
A106: 0.018 | B106: 25 | C106: 120 | D106: 6000 | E106: 25*120*6000 | F106: 0 | G106: 0 | H106: 0 | I106: 0
A107: 0.015 | B107: 25 | C107: 150 | D107: 4000 | E107: 25*150*4000 | F107: 0 | G107: 0 | H107: 0 | I107: 0
A108: 0.01875 | B108: 25 | C108: 150 | D108: 5000 | E108: 25*150*5000 | F108: 0 | G108: 0 | H108: 0 | I108: 0
A109: 0.0225 | B109: 25 | C109: 150 | D109: 6000 | E109: 25*150*6000 | F109: 0 | G109: 0 | H109: 0 | I109: 0
A110: 0.018 | B110: 25 | C110: 180 | D110: 4000 | E110: 25*180*4000 | F110: 0 | G110: 0 | H110: 0 | I110: 0
A111: 0.0225 | B111: 25 | C111: 180 | D111: 5000 | E111: 25*180*5000 | F111: 0 | G111: 0 | H111: 0 | I111: 0
A112: 0.027 | B112: 25 | C112: 180 | D112: 6000 | E112: 25*180*6000 | F112: 0 | G112: 0 | H112: 0 | I112: 0
A113: 0.02 | B113: 25 | C113: 200 | D113: 4000 | E113: 25*200*4000 | F113: 0 | G113: 0 | H113: 0 | I113: 0
A114: 0.025 | B114: 25 | C114: 200 | D114: 5000 | E114: 25*200*5000 | F114: 0 | G114: 0 | H114: 0 | I114: 0
A115: 0.03 | B115: 25 | C115: 200 | D115: 6000 | E115: 25*200*6000 | F115: 0 | G115: 0 | H115: 0 | I115: 0
A116: 0.012 | B116: 30 | C116: 100 | D116: 4000 | E116: 30*100*4000 | F116: 0 | G116: 0 | H116: 0 | I116: 0
A117: 0.015 | B117: 30 | C117: 100 | D117: 5000 | E117: 30*100*5000 | F117: 0 | G117: 0 | H117: 0 | I117: 0
A118: 0.018 | B118: 30 | C118: 100 | D118: 6000 | E118: 30*100*6000 | F118: 0 | G118: 0 | H118: 0 | I118: 0
A119: 0.0144 | B119: 30 | C119: 120 | D119: 4000 | E119: 30*120*4000 | F119: 0 | G119: 0 | H119: 0 | I119: 0
A120: 0.018 | B120: 30 | C120: 120 | D120: 5000 | E120: 30*120*5000 | F120: 0 | G120: 0 | H120: 0 | I120: 0
A121: 0.0216 | B121: 30 | C121: 120 | D121: 6000 | E121: 30*120*6000 | F121: 0 | G121: 0 | H121: 0 | I121: 0
A122: 0.018 | B122: 30 | C122: 150 | D122: 4000 | E122: 30*150*4000 | F122: 0 | G122: 0 | H122: 0 | I122: 0
A123: 0.0225 | B123: 30 | C123: 150 | D123: 5000 | E123: 30*150*5000 | F123: 0 | G123: 0 | H123: 0 | I123: 0
A124: 0.027 | B124: 30 | C124: 150 | D124: 6000 | E124: 30*150*6000 | F124: 0 | G124: 0 | H124: 0 | I124: 0
A125: 0.0216 | B125: 30 | C125: 180 | D125: 4000 | E125: 30*180*4000 | F125: 0 | G125: 0 | H125: 0 | I125: 0
A126: 0.027 | B126: 30 | C126: 180 | D126: 5000 | E126: 30*180*5000 | F126: 0 | G126: 0 | H126: 0 | I126: 0
A127: 0.0324 | B127: 30 | C127: 180 | D127: 6000 | E127: 30*180*6000 | F127: 0 | G127: 0 | H127: 0 | I127: 0
A128: 0.024 | B128: 30 | C128: 200 | D128: 4000 | E128: 30*200*4000 | F128: 0 | G128: 0 | H128: 0 | I128: 0
A129: 0.03 | B129: 30 | C129: 200 | D129: 5000 | E129: 30*200*5000 | F129: 0 | G129: 0 | H129: 0 | I129: 0
A130: 0.036 | B130: 30 | C130: 200 | D130: 6000 | E130: 30*200*6000 | F130: 0 | G130: 0 | H130: 0 | I130: 0
A131: 0.016 | B131: 40 | C131: 100 | D131: 4000 | E131: 40*100*4000 | F131: 1.88 | G131: 117.5 | H131: 0.704 | I131: 1.176 | O131: 1 | P131: Лиственица 40*100*4000
A132: 0.02 | B132: 40 | C132: 100 | D132: 5000 | E132: 40*100*5000 | F132: 0 | G132: 0 | H132: 0 | I132: 0
A133: 0.024 | B133: 40 | C133: 100 | D133: 6000 | E133: 40*100*6000 | F133: 1.1 | G133: 45.83333333 | H133: 0 | I133: 1.1
A134: 0.0192 | B134: 40 | C134: 120 | D134: 4000 | E134: 40*120*4000 | F134: 0.153 | G134: 7.96875 | H134: 0 | I134: 0.153
A135: 0.024 | B135: 40 | C135: 120 | D135: 5000 | E135: 40*120*5000 | F135: 0 | G135: 0 | H135: 0 | I135: 0
A136: 0.0288 | B136: 40 | C136: 120 | D136: 6000 | E136: 40*120*6000 | F136: 0.204 | G136: 7.083333333 | H136: 0 | I136: 0.204
A137: 0.024 | B137: 40 | C137: 150 | D137: 4000 | E137: 40*150*4000 | F137: 0 | G137: 0 | H137: 0 | I137: 0
A138: 0.03 | B138: 40 | C138: 150 | D138: 5000 | E138: 40*150*5000 | F138: 0 | G138: 0 | H138: 0 | I138: 0
A139: 0.036 | B139: 40 | C139: 150 | D139: 6000 | E139: 40*150*6000 | F139: 0.18 | G139: 5 | H139: 0 | I139: 0.18
A140: 0.0288 | B140: 40 | C140: 180 | D140: 4000 | E140: 40*180*4000 | F140: 0 | G140: 0 | H140: 0 | I140: 0
A141: 0.036 | B141: 40 | C141: 180 | D141: 5000 | E141: 40*180*5000 | F141: 0 | G141: 0 | H141: 0 | I141: 0
A142: 0.0432 | B142: 40 | C142: 180 | D142: 6000 | E142: 40*180*6000 | F142: 0 | G142: 0 | H142: 0 | I142: 0
A143: 0.032 | B143: 40 | C143: 200 | D143: 4000 | E143: 40*200*4000 | F143: 0.096 | G143: 3 | H143: 0 | I143: 0.096
A144: 0.04 | B144: 40 | C144: 200 | D144: 5000 | E144: 40*200*5000 | F144: 0 | G144: 0 | H144: 0 | I144: 0
A145: 0.048 | B145: 40 | C145: 200 | D145: 6000 | E145: 40*200*6000 | F145: 0.144 | G145: 3 | H145: 0 | I145: 0.144
A146: 0.02 | B146: 50 | C146: 100 | D146: 4000 | E146: 50*100*4000 | F146: 2 | G146: 100 | H146: 0 | I146: 2
A147: 0.025 | B147: 50 | C147: 100 | D147: 5000 | E147: 50*100*5000 | F147: 0 | G147: 0 | H147: 0 | I147: 0
A148: 0.03 | B148: 50 | C148: 100 | D148: 6000 | E148: 50*100*6000 | F148: 0 | G148: 0 | H148: 0 | I148: 0
A149: 0.024 | B149: 50 | C149: 120 | D149: 4000 | E149: 50*120*4000 | F149: 1.15 | G149: 47.91666667 | H149: 0 | I149: 1.15
A150: 0.03 | B150: 50 | C150: 120 | D150: 5000 | E150: 50*120*5000 | F150: 0 | G150: 0 | H150: 0 | I150: 0
A151: 0.036 | B151: 50 | C151: 120 | D151: 6000 | E151: 50*120*6000 | F151: 0.396 | G151: 11 | H151: 0 | I151: 0.396
A152: 0.03 | B152: 50 | C152: 150 | D152: 4000 | E152: 50*150*4000 | F152: =1.32-0.03-0.21 -> 1.08 | G152: 36 | H152: 0 | I152: 1.08
A153: 0.0375 | B153: 50 | C153: 150 | D153: 5000 | E153: 50*150*5000 | F153: 0.075 | G153: 2 | H153: 0 | I153: 0.075
A154: 0.045 | B154: 50 | C154: 150 | D154: 6000 | E154: 50*150*6000 | F154: =7-3.29 -> 3.71 | G154: 82.44444444 | H154: 0 | I154: 3.71
A155: 0.036 | B155: 50 | C155: 180 | D155: 4000 | E155: 50*180*4000 | F155: 0.144 | G155: 4 | H155: 0 | I155: 0.144
A156: 0.045 | B156: 50 | C156: 180 | D156: 5000 | E156: 50*180*5000 | F156: 0 | G156: 0 | H156: 0 | I156: 0
A157: 0.054 | B157: 50 | C157: 180 | D157: 6000 | E157: 50*180*6000 | F157: 0.432 | G157: 8 | H157: 0 | I157: 0.432
A158: 0.04 | B158: 50 | C158: 200 | D158: 4000 | E158: 50*200*4000 | F158: 0.16 | G158: 4 | H158: 0 | I158: 0.16
A159: 0.05 | B159: 50 | C159: 200 | D159: 5000 | E159: 50*200*5000 | F159: 0 | G159: 0 | H159: 0 | I159: 0
A160: 0.06 | B160: 50 | C160: 200 | D160: 6000 | E160: 50*200*6000 | F160: 0.12 | G160: 2 | H160: 0 | I160: 0.12
A161: 0.04 | B161: 100 | C161: 100 | D161: 4000 | E161: 100*100*4000 | F161: 5.76 | G161: 144 | H161: 0 | I161: 5.76
A162: 0.05 | B162: 100 | C162: 100 | D162: 5000 | E162: 100*100*5000 | F162: 0 | G162: 0 | H162: 0 | I162: 0
A163: 0.06 | B163: 100 | C163: 100 | D163: 6000 | E163: 100*100*6000 | F163: 0.12 | G163: 2 | H163: 0 | I163: 0.12
A164: 0.048 | B164: 100 | C164: 120 | D164: 4000 | E164: 100*120*4000 | F164: 0 | G164: 0 | H164: 0 | I164: 0
A165: =B165*C165*D165/1000000000 -> 0.06 | B165: 100 | C165: 120 | D165: 5000 | E165: 100*120*5000 | F165: 0 | G165: 0 | H165: =A165*VLOOKUP(P165,$V$7:$AB$18,7,0) -> 0 | I165: 0
A166: 0.072 | B166: 100 | C166: 120 | D166: 6000 | E166: 100*120*6000 | F166: 0 | G166: =F166/A166 -> 0 | H166: 0 | I166: =F166-H166 -> 0 | P166: =IF(O166=1,"Лиственица "&""&E166,"") -> 
A167: 0.06 | B167: 100 | C167: 150 | D167: 4000 | E167: 100*150*4000 | F167: 7.12 | G167: 118.6666667 | H167: 0 | I167: 7.12
A168: 0.075 | B168: 100 | C168: 150 | D168: 5000 | E168: 100*150*5000 | F168: 0 | G168: 0 | H168: 0 | I168: 0
A169: 0.09 | B169: 100 | C169: 150 | D169: 6000 | E169: 100*150*6000 | F169: 0 | G169: 0 | H169: 0 | I169: 0
A170: 0.072 | B170: 100 | C170: 180 | D170: 4000 | E170: 100*180*4000 | F170: 0 | G170: 0 | H170: 0 | I170: 0
A171: 0.09 | B171: 100 | C171: 180 | D171: 5000 | E171: 100*180*5000 | F171: 0 | G171: 0 | H171: 0 | I171: 0
A172: 0.108 | B172: 100 | C172: 180 | D172: 6000 | E172: 100*180*6000 | F172: 0 | G172: 0 | H172: 0 | I172: 0
A173: 0.08 | B173: 100 | C173: 200 | D173: 4000 | E173: 100*200*4000 | F173: 0 | G173: 0 | H173: 0 | I173: 0
A174: 0.1 | B174: 100 | C174: 200 | D174: 5000 | E174: 100*200*5000 | F174: 0 | G174: 0 | H174: 0 | I174: 0
A175: 0.12 | B175: 100 | C175: 200 | D175: 6000 | E175: 100*200*6000 | F175: 0 | G175: 0 | H175: 0 | I175: 0
A176: 0.072 | B176: 150 | C176: 120 | D176: 4000 | E176: 150*120*4000 | F176: 0 | G176: 0 | H176: 0 | I176: 0
A177: 0.09 | B177: 150 | C177: 120 | D177: 5000 | E177: 150*120*5000 | F177: 0 | G177: 0 | H177: 0 | I177: 0
A178: 0.108 | B178: 150 | C178: 120 | D178: 6000 | E178: 150*120*6000 | F178: 0 | G178: 0 | H178: 0 | I178: 0
A179: 0.09 | B179: 150 | C179: 150 | D179: 4000 | E179: 150*150*4000 | F179: =8.39-0.45 -> 7.94 | G179: 88.22222222 | H179: 0 | I179: 7.94
A180: 0.1125 | B180: 150 | C180: 150 | D180: 5000 | E180: 150*150*5000 | F180: 0 | G180: 0 | H180: 0 | I180: 0
A181: 0.135 | B181: 150 | C181: 150 | D181: 6000 | E181: 150*150*6000 | F181: =3.375-0.945 -> 2.43 | G181: 18 | H181: 0 | I181: 2.43
A182: 0.108 | B182: 150 | C182: 180 | D182: 4000 | E182: 150*180*4000 | F182: 0 | G182: 0 | H182: 0 | I182: 0
A183: 0.135 | B183: 150 | C183: 180 | D183: 5000 | E183: 150*180*5000 | F183: 0 | G183: 0 | H183: 0 | I183: 0
A184: 0.162 | B184: 150 | C184: 180 | D184: 6000 | E184: 150*180*6000 | F184: 0 | G184: 0 | H184: 0 | I184: 0
A185: 0.12 | B185: 150 | C185: 200 | D185: 4000 | E185: 150*200*4000 | F185: 0 | G185: 0 | H185: 0 | I185: 0
A186: 0.15 | B186: 150 | C186: 200 | D186: 5000 | E186: 150*200*5000 | F186: 0 | G186: 0 | H186: 0 | I186: 0
A187: 0.18 | B187: 150 | C187: 200 | D187: 6000 | E187: 150*200*6000 | F187: 0 | G187: 0 | H187: 0 | I187: 0
A188: 0.096 | B188: 200 | C188: 120 | D188: 4000 | E188: 200*120*4000 | F188: 0 | G188: 0 | H188: 0 | I188: 0
A189: 0.12 | B189: 200 | C189: 120 | D189: 5000 | E189: 200*120*5000 | F189: 0 | G189: 0 | H189: 0 | I189: 0
A190: 0.144 | B190: 200 | C190: 120 | D190: 6000 | E190: 200*120*6000 | F190: 0 | G190: 0 | H190: 0 | I190: 0
A191: 0.144 | B191: 200 | C191: 180 | D191: 4000 | E191: 200*180*4000 | F191: 0 | G191: 0 | H191: 0 | I191: 0
A192: 0.18 | B192: 200 | C192: 180 | D192: 5000 | E192: 200*180*5000 | F192: 0 | G192: 0 | H192: 0 | I192: 0
A193: 0.216 | B193: 200 | C193: 180 | D193: 6000 | E193: 200*180*6000 | F193: 0 | G193: 0 | H193: 0 | I193: 0
A194: 0.16 | B194: 200 | C194: 200 | D194: 4000 | E194: 200*200*4000 | F194: 0.16 | G194: 1 | H194: 0 | I194: 0.16
A195: 0.2 | B195: 200 | C195: 200 | D195: 5000 | E195: 200*200*5000 | F195: 0 | G195: 0 | H195: 0 | I195: 0
A196: 0.24 | B196: 200 | C196: 200 | D196: 6000 | E196: 200*200*6000 | F196: 0 | G196: 0 | H196: 0 | I196: 0
E197: Пихта
A198: М3 | E198: Наименование | F198: Приход М3 | G198: шт | H198: РАСХОД | I198: ИТОГ
A199: =B199*C199*D199/1000000000 -> 0.01 | B199: 25 | C199: 100 | D199: 4000 | E199: 25*100*4000 | F199: 0 | G199: =F199/A199 -> 0 | H199: =A199*VLOOKUP(P199,$V$7:$AB$18,7,0) -> 0 | I199: =F199-H199 -> 0 | P199: =IF(O199=1,"Пихта "&""&E199,"") -> 
A200: 0.0125 | B200: 25 | C200: 100 | D200: 5000 | E200: 25*100*5000 | F200: 0 | G200: =F200/A200 -> 0 | H200: 0 | I200: =F200-H200 -> 0 | P200: =IF(O200=1,"Пихта "&""&E200,"") -> 
... 192 more rows

Sheet Лист1
A1: № п/п | B1: Наименование, характеристика товара | H1: Кол-во | I1: Цена | L1: Сумма
A2: =IF(B2<>"",MAX($A$1:A1)+1,"") ->  | B2: =Лист1!V7:AA7 ->  | L2: =Лист1!AF6 -> 0
A3: =IF(B3<>"",MAX($A$1:A2)+1,"") ->  | L3: =Лист1!AF7 -> 0
A4: =IF(B4<>"",MAX($A$1:A3)+1,"") ->  | L4: =Лист1!AF8 -> 0
A5: =IF(B5<>"",MAX($A$1:A4)+1,"") ->  | L5: =Лист1!AF9 -> 0
A6: =IF(B6<>"",MAX($A$1:A5)+1,"") ->  | L6: =Лист1!AF10 -> 0
A7: =IF(B7<>"",MAX($A$1:A6)+1,"") ->  | L7: =Лист1!AF11 -> 0
A8: =IF(B8<>"",MAX($A$1:A7)+1,"") ->  | L8: =Лист1!AF12 -> 0
A9: =IF(B9<>"",MAX($A$1:A8)+1,"") ->  | L9: =Лист1!AF13 -> 0
A10: =IF(B10<>"",MAX($A$1:A9)+1,"") ->  | L10: =Лист1!AF14 -> 0
A11: =IF(B11<>"",MAX($A$1:A10)+1,"") ->  | L11: =Лист1!AF15 -> 0
A12: =IF(B12<>"",MAX($A$1:A11)+1,"") ->  | L12: =Лист1!AF16 -> 0
A13: =IF(B13<>"",MAX($A$1:A12)+1,"") ->  | L13: =Лист1!AF17 -> 0
